bitfinex/quotes_SOLUSD_20240708
["timestamp","ask_amount","ask_price","bid_price","bid_amount"]
[1720423232292,115.5011,132.42,132.31,0.17]
[1720423232462,115.5011,132.42,132.31,20.17]
[1720423233284,15.5011,132.42,132.31,20.17]
[1720423233593,100.0,132.44,132.32,15.4313]
[1720423233792,100.0,132.44,132.33,20.17]
[1720423234680,100.0,132.44,132.34,6.5124]
[1720423235005,100.0,132.44,132.35,0.17]
[1720423235300,100.0,132.44,132.35,20.17]
[1720423235684,100.0,132.46,132.36,16.431]
[1720423235989,100.0,132.46,132.37,0.17]
[1720423236568,100.0,132.44,132.37,0.17]
[1720423236985,100.0,132.46,132.37,0.17]
[1720423239677,127.6035863,132.48,132.37,0.17]
[1720423239876,100.0,132.46,132.37,0.17]
[1720423240399,100.0,132.46,132.37,390.37]
[1720423241215,100.0,132.44,132.37,390.37]
[1720423242205,100.0,132.42,132.37,390.37]
[1720423242399,100.0,132.42,132.37,390.2]
[1720423245985,100.0,132.42,132.36,16.431]
[1720423246295,100.0,132.4,132.34,6.5124]
[1720423248810,116.433,132.42,132.34,6.5124]
[1720423249340,116.433,132.42,132.35,0.17]
[1720423249480,100.0,132.44,132.35,20.17]
[1720423250410,15.3958,132.45,132.35,20.17]
[1720423251019,100.0,132.46,132.35,20.17]
[1720423251619,100.0,132.44,132.35,20.17]
[1720423251915,100.0,132.46,132.35,410.37]
[1720423252485,100.0,132.46,132.36,34.61]
[1720423252890,100.0,132.46,132.37,0.17]
[1720423253098,115.8432,132.48,132.38,16.341]
[1720423253301,115.8432,132.48,132.39,6.8347]
[1720423256420,100.0,132.44,132.39,6.6647]
[1720423257019,100.0,132.46,132.39,6.6647]
[1720423258518,115.8432,132.48,132.39,6.6647]
[1720423258723,115.8432,132.48,132.4,0.17]
[1720423259819,100.0,132.46,132.4,0.17]
[1720423260904,100.0,132.46,132.39,6.6647]
[1720423260905,100.0,132.44,132.39,6.6647]
[1720423261102,100.0,132.42,132.36,6.4575]
[1720423261905,100.0,132.4,132.34,15.0736]
[1720423262108,100.0,132.42,132.34,15.0736]
[1720423262418,100.0,132.37,132.33,6.5003]
[1720423262612,100.0,132.37,132.31,16.1194]
[1720423262922,100.0,132.35,132.31,16.1194]
[1720423263812,100.0,132.33,132.27,16.619]
[1720423264417,100.0,132.31,132.26,6.1552]
[1720423268226,100.0,132.33,132.26,6.1552]
[1720423272327,100.0,132.3,132.26,6.1552]
[1720423273330,100.0,132.28,132.23,412.7773]
[1720423273532,100.0,132.28,132.23,22.5773]
[1720423275218,100.0,132.26,132.21,0.1]
[1720423275732,100.0,132.24,132.21,0.1]
[1720423276317,100.0,132.22,132.21,0.1]
[1720423277732,100.0,132.24,132.21,0.1]
[1720423277937,100.0,132.26,132.21,0.1]
[1720423278930,16.5277,132.3,132.21,0.27]
[1720423279131,100.0,132.31,132.23,6.3742]
[1720423279351,100.0,132.33,132.24,0.17]
[1720423280536,100.0,132.31,132.24,0.17]
[1720423281444,100.0,132.29,132.24,0.17]
[1720423282541,100.0,132.29,132.23,6.3742]
[1720423283926,100.0,132.27,132.21,0.1]
[1720423284851,100.0,132.25,132.21,0.1]
[1720423286043,100.0,132.27,132.21,0.1]
[1720423286341,6.2934,132.29,132.21,0.27]
[1720423286342,100.0,132.29,132.21,0.27]
[1720423286751,100.0,132.29,132.22,16.5431]
[1720423286947,100.0,132.29,132.23,0.17]
[1720423287242,15.4713,132.31,132.23,0.17]
[1720423287446,100.0,132.3,132.23,0.17]
[1720423288452,100.0,132.28,132.23,0.17]
[1720423289222,100.0,132.28,132.22,16.5431]
[1720423289426,100.0,132.28,132.21,0.1]
[1720423290332,100.0,132.3,132.21,0.1]
[1720423291248,100.0,132.3,132.22,6.4452]
[1720423291454,100.0,132.3,132.23,0.17]
[1720423291834,100.0,132.32,132.23,0.17]
[1720423292742,100.0,132.32,132.24,15.8046]
[1720423292958,100.0,132.32,132.25,0.17]
[1720423293245,100.0,132.32,132.25,20.17]
[1720423293546,100.0,132.35,132.25,20.17]
[1720423295863,100.0,132.35,132.26,6.497]
[1720423296072,100.0,132.35,132.27,20.17]
[1720423296349,100.0,132.35,132.27,410.37]
[1720423296558,100.0,132.39,132.27,410.37]
[1720423296729,100.0,132.39,132.28,21.1995]
[1720423296933,100.0,132.39,132.29,0.17]
[1720423297238,100.0,132.39,132.29,20.17]
[1720423297864,100.0,132.41,132.31,15.7811]
[1720423298148,100.0,132.41,132.32,20.17]
[1720423298854,100.0,132.43,132.32,20.17]
[1720423299059,16.32,132.44,132.32,20.17]
[1720423299060,100.0,132.41,132.32,20.17]
[1720423300047,100.0,132.39,132.32,20.17]
[1720423300248,100.0,132.39,132.32,0.17]
[1720423303050,100.0,132.37,132.31,21.67479584]
[1720423303259,100.0,132.39,132.31,21.67479584]
[1720423303760,100.0,132.37,132.31,21.67479584]
[1720423303937,11.08821209,132.43,132.31,21.67479584]
[1720423303938,100.0,132.39,132.31,21.67479584]
[1720423304440,100.0,132.39,132.32,0.17]
[1720423305150,100.0,132.42,132.32,0.17]
[1720423305741,100.0,132.42,132.32,20.17]
[1720423306235,100.0,132.42,132.33,6.3511]
[1720423306440,100.0,132.45,132.34,21.68079781]
[1720423306638,100.0,132.42,132.34,20.17]
[1720423307263,100.0,132.4,132.34,20.17]
[1720423308161,100.0,132.4,132.33,6.3511]
[1720423308341,100.0,132.38,132.33,6.3511]
[1720423310057,100.0,132.4,132.33,6.3511]
[1720423310265,100.0,132.4,132.34,0.17]
[1720423311041,100.0,132.42,132.34,0.17]
[1720423311542,11.08998505,132.48,132.35,21.6641]
[1720423311742,111.08998505,132.49,132.36,20.17]
[1720423311972,100.0,132.49,132.36,20.17]
[1720423312277,100.0,132.46,132.36,20.17]
[1720423312768,100.0,132.48,132.37,6.5499]
[1720423312940,100.0,132.48,132.38,20.17]
[1720423313143,100.0,132.46,132.38,20.17]
[1720423313762,100.0,132.44,132.38,20.17]
[1720423316243,100.0,132.44,132.38,0.17]
[1720423316447,100.0,132.42,132.37,6.5499]
[1720423318744,100.0,132.39,132.35,15.515]
[1720423319761,100.0,132.41,132.35,15.515]
[1720423320359,100.0,132.41,132.36,0.17]
[1720423321271,100.0,132.39,132.35,15.515]
[1720423322069,100.0,132.41,132.35,15.515]
[1720423322378,100.0,132.43,132.36,0.17]
[1720423324351,100.0,132.45,132.36,20.17]
[1720423327678,100.0,132.42,132.36,20.17]
[1720423328070,27.56542593,132.47,132.36,20.17]
[1720423328071,100.0,132.44,132.36,20.17]
[1720423328262,100.0,132.47,132.37,6.1428]
[1720423328577,100.0,132.43,132.38,0.17]
[1720423328775,100.0,132.43,132.37,6.1428]
[1720423329151,100.0,132.45,132.37,6.1428]
[1720423329356,100.0,132.45,132.38,0.17]
[1720423329651,100.0,132.47,132.38,20.17]
[1720423331779,100.0,132.45,132.38,20.17]
[1720423331989,100.0,132.43,132.38,0.17]
[1720423332195,100.0,132.43,132.37,396.3428]
[1720423333681,100.0,132.45,132.37,396.3428]
[1720423333895,111.10443059,132.47,132.38,20.17]
[1720423334183,100.0,132.47,132.38,20.17]
[1720423334887,100.0,132.45,132.38,20.17]
[1720423335059,100.0,132.47,132.38,20.17]
[1720423336198,111.10498239,132.47,132.38,20.17]
[1720423336402,100.0,132.45,132.38,20.17]
[1720423338288,100.0,132.42,132.37,396.3428]
[1720423338805,34.6,132.44,132.37,396.3428]
[1720423338806,100.0,132.4,132.37,396.3428]
[1720423339260,100.0,132.42,132.37,396.3428]
[1720423339665,100.0,132.44,132.37,396.3428]
[1720423339887,100.0,132.44,132.38,0.17]
[1720423340992,100.0,132.46,132.38,0.17]
[1720423341395,111.10832632,132.46,132.38,0.17]
[1720423343197,11.10832632,132.45,132.38,0.17]
[1720423343404,111.10832632,132.46,132.38,0.17]
[1720423343972,11.10832632,132.46,132.38,0.17]
[1720423344204,11.11139388,132.46,132.39,16.1564]
[1720423344413,11.11139388,132.47,132.4,0.17]
[1720423344710,111.11139388,132.48,132.4,1.67576564]
[1720423345206,111.11139388,132.48,132.4,20.17]
[1720423345413,100.0,132.48,132.4,20.17]
[1720423346090,111.11139388,132.48,132.4,20.17]
[1720423346612,111.11139388,132.48,132.41,6.0244]
[1720423346613,11.11139388,132.48,132.41,6.0244]
[1720423346775,11.11139388,132.49,132.42,0.17]
[1720423347314,100.0,132.5,132.43,15.0333]
[1720423347473,116.0723,132.55,132.45,6.3106]
[1720423347674,11.12335254,132.51,132.46,0.17]
[1720423347973,11.12495782,132.52,132.46,0.17]
[1720423348391,11.12495782,132.53,132.46,0.17]
[1720423348978,111.12495782,132.53,132.46,0.17]
[1720423349176,11.12495782,132.53,132.47,15.2887]
[1720423349381,11.12495782,132.54,132.48,0.17]
[1720423350495,111.1280391,132.55,132.48,0.17]
[1720423351296,100.0,132.53,132.48,0.17]
[1720423353107,111.1280391,132.55,132.48,0.17]
[1720423353699,11.13542794,132.55,132.48,0.17]
[1720423353889,111.13542794,132.55,132.48,0.17]
[1720423354287,100.0,132.53,132.48,0.17]
[1720423354493,100.0,132.53,132.47,15.2887]
[1720423356088,11.13542794,132.54,132.47,15.2887]
[1720423356294,134.6,132.55,132.48,0.17]
[1720423356502,145.73542794,132.55,132.48,0.17]
[1720423356808,100.0,132.55,132.48,0.17]
[1720423357012,111.13817396,132.55,132.48,0.17]
[1720423357301,111.13817685,132.55,132.48,0.17]
[1720423357706,11.13817685,132.55,132.48,0.17]
[1720423357893,100.0,132.54,132.48,0.17]
[1720423359316,111.99282087,132.56,132.48,0.17]
[1720423359815,111.99282087,132.56,132.48,21.67922812]
[1720423360009,0.8530589,132.56,132.48,21.67922812]
[1720423360193,0.8530589,132.56,132.48,20.17]
[1720423360518,11.99352898,132.56,132.48,20.17]
[1720423360695,111.99352898,132.56,132.48,20.17]
[1720423361004,100.8530589,132.56,132.48,20.17]
[1720423362113,0.8530589,132.56,132.48,20.17]
[1720423362687,0.8530589,132.56,132.49,6.1264]
[1720423362997,0.8530589,132.56,132.5,0.17]
[1720423363321,0.8530589,132.56,132.5,20.17]
[1720423364016,0.8530589,132.56,132.51,15.3142]
[1720423364194,0.8530589,132.56,132.52,0.17]
[1720423367494,0.8530589,132.56,132.51,15.3142]
[1720423367699,100.0,132.55,132.49,396.3264]
[1720423368107,100.0,132.55,132.49,6.1264]
[1720423368507,0.8530589,132.56,132.49,6.1264]
[1720423369200,0.8530589,132.56,132.5,0.17]
[1720423369825,100.0,132.55,132.5,0.17]
[1720423370319,0.8530589,132.56,132.5,20.17]
[1720423373892,0.8530589,132.56,132.5,410.37]
[1720423376297,0.8530589,132.56,132.51,15.3614]
[1720423376497,0.1,132.59,132.52,20.17]
[1720423376700,0.1,132.59,132.52,54.77]
[1720423376888,0.1,132.59,132.53,13.6888]
[1720423377092,0.1,132.59,132.54,70.2349]
[1720423379395,11.14615961,132.6,132.56,16.0987]
[1720423379719,11.14615961,132.6,132.57,0.17]
[1720423380015,3.90849993,132.6,132.57,0.17]
[1720423380216,3.90849993,132.6,132.57,20.17]
[1720423384606,1.63949993,132.6,132.57,20.17]
[1720423385012,26.60723805,132.67,132.57,20.17]
[1720423385319,26.61444693,132.67,132.57,410.37]
[1720423386104,11.14194693,132.67,132.57,410.37]
[1720423386308,10.64194693,132.67,132.58,40.9638]
[1720423386621,0.9530589,132.69,132.6,49.9403]
[1720423386805,0.9530589,132.69,132.61,20.17]
[1720423387219,0.9530589,132.69,132.62,6.3284]
[1720423387419,0.9530589,132.69,132.63,20.17]
[1720423387607,0.9530589,132.69,132.63,410.37]
[1720423388008,0.9530589,132.69,132.64,49.641]
[1720423388203,0.9530589,132.69,132.65,20.17]
[1720423389125,0.9530589,132.69,132.65,0.17]
[1720423389307,0.9530589,132.69,132.65,20.0]
[1720423389618,0.9530589,132.69,132.64,15.041]
[1720423390718,0.9530589,132.69,132.63,0.17]
[1720423390917,0.9530589,132.69,132.58,400.64173108]
[1720423390918,100.0,132.68,132.6,6.0950238]
[1720423391224,100.0,132.68,132.58,423.41253108]
[1720423391520,11.15039659,132.65,132.58,423.41253108]
[1720423391708,115.5431,132.62,132.55,405.2785]
[1720423391929,11.15039659,132.62,132.55,15.0785]
[1720423392226,6.141,132.68,132.56,10.44173108]
[1720423392227,11.15039659,132.63,132.56,10.44173108]
[1720423392425,11.15039659,132.65,132.56,10.44173108]
[1720423392728,11.15039659,132.64,132.56,10.44173108]
[1720423392919,111.15039659,132.64,132.56,10.44173108]
[1720423393118,11.15039659,132.62,132.55,15.0785]
[1720423393527,26.98049659,132.63,132.55,15.0785]
[1720423393702,11.15039659,132.62,132.55,15.0785]
[1720423393908,26.98049659,132.63,132.55,15.0785]
[1720423394115,100.0,132.62,132.55,15.0785]
[1720423394321,111.14811136,132.62,132.56,20.0]
[1720423394531,11.14811136,132.62,132.56,20.0]
[1720423394728,11.14866347,132.62,132.56,20.0]
[1720423395533,11.14866347,132.62,132.57,0.17]
[1720423395911,111.14866347,132.62,132.56,20.0]
[1720423396233,111.14866347,132.6,132.54,6.5058]
[1720423396605,100.0,132.6,132.54,6.5058]
[1720423396809,111.14866347,132.6,132.54,6.5058]
[1720423397239,11.14866347,132.6,132.55,16.617]
[1720423397532,11.15190995,132.63,132.55,51.217]
[1720423397827,11.15190995,132.63,132.56,20.17]
[1720423398039,11.15190995,132.65,132.56,20.17]
[1720423398209,27.69380995,132.66,132.56,20.17]
[1720423399133,27.70356117,132.66,132.56,20.17]
[1720423400314,16.5419,132.66,132.56,20.17]
[1720423400731,100.0,132.65,132.56,20.0]
[1720423401049,100.0,132.61,132.55,406.817]
[1720423401752,100.0,132.59,132.55,390.2]
[1720423402909,34.6,132.62,132.55,390.2]
[1720423403126,100.0,132.63,132.55,390.2]
[1720423403736,100.0,132.63,132.54,6.6758]
[1720423403919,100.0,132.63,132.55,0.17]
[1720423404118,111.1543207,132.63,132.55,0.17]
[1720423404455,100.0,132.63,132.55,0.17]
[1720423404753,100.0,132.59,132.51,21.78014158]
[1720423405108,100.0,132.57,132.51,15.8928]
[1720423405827,50.2313,132.6,132.51,15.8928]
[1720423405828,100.0,132.59,132.51,15.8928]
[1720423406513,100.0,132.59,132.52,20.0]
[1720423407213,100.0,132.59,132.53,0.17]
[1720423407621,100.0,132.59,132.52,20.0]
[1720423408943,100.0,132.59,132.53,0.17]
[1720423409330,15.6313,132.6,132.53,0.17]
[1720423409938,161.68362595,132.63,132.53,0.17]
[1720423410144,127.08913915,132.63,132.53,0.17]
[1720423410725,111.15753915,132.63,132.53,0.17]
[1720423410927,11.15753915,132.64,132.54,21.242]
[1720423411123,11.15753915,132.65,132.55,20.17]
[1720423411319,111.15753915,132.65,132.55,20.17]
[1720423411536,11.15753915,132.64,132.55,20.17]
[1720423411731,111.15753915,132.65,132.55,20.17]
[1720423411936,100.0,132.63,132.55,20.17]
[1720423415229,111.15925365,132.63,132.55,20.17]
[1720423415425,100.0,132.63,132.55,20.17]
[1720423415836,111.15925365,132.63,132.55,20.17]
[1720423416542,111.15119267,132.63,132.55,20.17]
[1720423419235,100.0,132.61,132.55,20.0]
[1720423419566,100.0,132.59,132.55,20.0]
[1720423420527,145.75535828,132.61,132.55,20.0]
[1720423422361,100.0,132.59,132.52,6.0598865]
[1720423422535,100.0,132.57,132.51,22.7544]
[1720423423235,11.15535828,132.59,132.51,22.7544]
[1720423423236,111.15633654,132.59,132.51,22.7544]
[1720423423661,111.1561717,132.59,132.51,22.7544]
[1720423423835,100.0,132.59,132.51,22.7544]
[1720423424948,100.0,132.56,132.51,22.7544]
[1720423427051,100.0,132.56,132.51,6.4549]
[1720423427451,100.0,132.58,132.51,6.4549]
[1720423428059,100.0,132.58,132.49,6.00284249]
[1720423428263,100.0,132.58,132.5,20.17]
[1720423428850,100.0,132.58,132.51,20.0]
[1720423429054,100.0,132.58,132.5,0.17]
[1720423430651,100.0,132.56,132.5,0.17]
[1720423430845,100.0,132.54,132.49,20.0]
[1720423431057,100.0,132.54,132.48,405.9902]
[1720423431969,11.16764599,132.6,132.48,405.9902]
[1720423432264,11.16764599,132.59,132.49,0.50739367]
[1720423432655,11.16764599,132.59,132.5,0.17]
[1720423432865,145.7664203,132.6,132.5,0.17]
[1720423433070,111.1664203,132.6,132.5,0.17]
[1720423433368,134.6,132.6,132.5,0.17]
[1720423433573,100.0,132.57,132.5,0.17]
[1720423434972,111.16563128,132.57,132.49,0.17]
[1720423435467,11.16563128,132.56,132.49,0.17]
[1720423435772,111.16563128,132.57,132.49,0.17]
[1720423436159,111.16453353,132.57,132.49,20.17]
[1720423437747,11.16453353,132.56,132.49,20.17]
[1720423438257,111.16453353,132.57,132.49,20.17]
[1720423438647,11.16453353,132.56,132.49,20.0]
[1720423438954,100.0,132.55,132.49,20.0]
[1720423441251,11.16276403,132.56,132.49,20.0]
[1720423442755,100.0,132.55,132.49,20.0]
[1720423446284,100.0,132.55,132.5,0.17]
[1720423446774,11.16276403,132.56,132.49,20.0]
[1720423446980,111.17113016,132.57,132.49,20.0]
[1720423447364,111.17113016,132.57,132.5,0.17]
[1720423448282,111.17955933,132.57,132.49,20.0]
[1720423448472,111.17923211,132.57,132.49,20.0]
[1720423450268,11.17923211,132.56,132.49,20.0]
[1720423450457,100.0,132.55,132.49,20.0]
[1720423451881,100.0,132.53,132.49,20.0]
[1720423452177,100.0,132.53,132.48,15.7902]
[1720423452378,100.0,132.51,132.45,16.4845]
[1720423452588,100.0,132.51,132.43,6.527]
[1720423452589,100.0,132.49,132.43,6.527]
[1720423453079,100.0,132.49,132.43,12.49369086]
[1720423454088,100.0,132.51,132.43,12.49369086]
[1720423454388,11.17784833,132.53,132.44,20.0]
[1720423454886,111.17784833,132.54,132.44,20.0]
[1720423455084,100.0,132.54,132.45,0.17]
[1720423455374,111.17784833,132.54,132.45,0.17]
[1720423455578,100.0,132.54,132.45,0.17]
[1720423455876,111.17784833,132.54,132.45,0.17]
[1720423456080,100.0,132.54,132.45,0.17]
[1720423456268,111.17784833,132.54,132.45,0.17]
[1720423457376,100.0,132.49,132.44,20.0]
[1720423458175,100.0,132.47,132.43,6.527]
[1720423459692,100.0,132.47,132.42,16.4845]
[1720423459893,100.0,132.47,132.39,6.3394]
[1720423459894,100.0,132.45,132.39,22.8311]
[1720423461477,100.0,132.45,132.4,20.0]
[1720423462079,100.0,132.43,132.4,20.0]
[1720423462662,100.0,132.45,132.4,20.0]
[1720423463062,116.6271,132.49,132.4,20.0]
[1720423463386,116.6271,132.49,132.41,0.17]
[1720423465086,100.0,132.46,132.4,20.0]
[1720423466786,100.0,132.44,132.39,22.8311]
[1720423466968,100.0,132.44,132.39,6.3394]
[1720423467169,100.0,132.44,132.37,390.2]
[1720423467492,100.0,132.44,132.38,20.0]
[1720423468387,100.0,132.42,132.36,21.5846]
[1720423469887,100.0,132.44,132.37,20.0]
[1720423470287,100.0,132.44,132.38,0.17]
[1720423470693,100.0,132.46,132.38,0.17]
[1720423471313,100.0,132.48,132.38,0.17]
[1720423471905,100.0,132.48,132.39,21.2316]
[1720423472510,100.0,132.48,132.4,20.17]
[1720423473179,100.0,132.5,132.4,20.17]
[1720423474281,111.17593232,132.5,132.4,20.17]
[1720423474514,11.17593232,132.47,132.4,20.17]
[1720423474695,111.17593232,132.46,132.4,20.17]
[1720423474996,11.17593232,132.44,132.4,20.0]
[1720423475189,11.17593232,132.43,132.4,20.0]
[1720423475577,11.17593232,132.42,132.39,21.2316]
[1720423475778,11.17593232,132.4,132.39,21.2316]
[1720423476083,11.17593232,132.4,132.36,21.4409]
[1720423477297,11.17593232,132.41,132.37,20.0]
[1720423478191,11.17593232,132.41,132.38,0.17]
[1720423478393,11.17593232,132.42,132.38,0.17]
[1720423478687,11.17593232,132.43,132.38,0.17]
[1720423478885,11.17593232,132.42,132.38,0.17]
[1720423480483,11.16534795,132.42,132.38,0.17]
[1720423480891,11.16302334,132.42,132.38,0.17]
[1720423481093,11.16302334,132.41,132.38,0.17]
[1720423481889,11.16302334,132.41,132.37,20.0]
[1720423482108,11.16302334,132.4,132.37,20.0]
[1720423482908,34.6,132.47,132.37,20.0]
[1720423482909,11.16302334,132.39,132.37,20.0]
[1720423483701,11.16167515,132.39,132.37,20.0]
[1720423483884,11.16167515,132.39,132.36,21.4409]
[1720423484083,11.16167515,132.37,132.36,21.4409]
[1720423484292,11.16167515,132.38,132.36,21.4409]
[1720423484797,11.16167515,132.39,132.36,21.4409]
[1720423485194,100.0,132.42,132.36,21.4409]
[1720423485396,11.16142429,132.38,132.36,21.4409]
[1720423486105,11.16142429,132.39,132.36,21.4409]
[1720423486293,15.7458,132.44,132.37,0.17]
[1720423486294,11.16142429,132.38,132.37,0.17]
[1720423486607,11.16142429,132.39,132.37,0.17]
[1720423487002,100.0,132.42,132.37,0.17]
[1720423487205,11.16206607,132.39,132.37,20.17]
[1720423488211,11.16206607,132.4,132.37,20.17]
[1720423489687,6.5320866,132.41,132.37,444.97]
[1720423490085,115.0829,132.48,132.37,444.97]
[1720423491094,100.0,132.46,132.37,444.97]
[1720423492214,100.0,132.46,132.37,410.37]
[1720423493207,149.6829,132.48,132.37,410.37]
[1720423493515,115.0829,132.48,132.37,444.97]
[1720423494817,11.16182552,132.43,132.37,444.97]
[1720423495224,5.16182552,132.43,132.37,444.97]
[1720423495524,115.0829,132.48,132.37,444.97]
[1720423496411,100.0,132.48,132.37,444.97]
[1720423496613,100.0,132.5,132.38,22.5755]
[1720423496817,100.0,132.5,132.39,54.77]
[1720423500617,11.1547152,132.44,132.39,54.77]
[1720423500809,11.1547152,132.43,132.39,54.77]
[1720423501410,11.1547152,132.44,132.39,20.17]
[1720423501606,11.14659856,132.43,132.39,20.17]
[1720423502328,100.0,132.46,132.39,20.17]
[1720423502510,11.14553837,132.43,132.39,20.17]
[1720423503913,5.34553837,132.43,132.39,20.17]
[1720423504531,100.0,132.48,132.39,20.17]
[1720423507809,100.0,132.46,132.39,410.37]
[1720423508230,100.0,132.48,132.39,410.37]
[1720423508531,134.6,132.5,132.39,410.37]
[1720423508712,100.0,132.5,132.39,444.97]
[1720423508915,11.14727802,132.45,132.39,444.97]
[1720423509326,11.1468464,132.45,132.39,444.97]
[1720423510238,5.1428464,132.45,132.4,21.6341]
[1720423510439,15.1474,132.55,132.43,56.2341]
[1720423510639,15.1474,132.55,132.45,34.6]
[1720423510944,115.1474,132.55,132.46,0.17]
[1720423511121,115.1474,132.55,132.46,20.17]
[1720423512347,16.4776,132.58,132.47,21.3154]
[1720423512539,16.4776,132.58,132.48,20.17]
[1720423515416,16.4776,132.58,132.48,410.37]
[1720423515621,11.16198877,132.53,132.48,410.37]
[1720423515918,106.6544,132.6,132.48,410.37]
[1720423515919,11.16198877,132.54,132.48,410.37]
[1720423516127,3.5154003,132.56,132.49,56.8114]
[1720423516322,15.7483,132.61,132.51,34.6]
[1720423516528,140.6455,132.63,132.51,34.6]
[1720423516529,100.0,132.63,132.54,21.4905]
[1720423516739,100.0,132.66,132.55,54.77]
[1720423517621,100.0,132.63,132.55,54.77]
[1720423517855,100.0,132.63,132.55,20.17]
[1720423518670,100.0,132.6,132.54,411.6905]
[1720423518825,49.6399,132.64,132.54,390.2]
[1720423518826,100.0,132.58,132.54,390.2]
[1720423519151,100.0,132.55,132.51,22.0361]
[1720423519360,100.0,132.57,132.51,22.0361]
[1720423520042,100.0,132.61,132.51,22.0361]
[1720423520227,15.0399,132.64,132.51,22.0361]
[1720423520228,100.0,132.59,132.51,22.0361]
[1720423520430,100.0,132.59,132.52,0.17]
[1720423521348,100.0,132.59,132.52,20.17]
[1720423521731,100.0,132.57,132.52,20.17]
[1720423522243,11.17639244,132.59,132.52,20.0]
[1720423522448,111.17639244,132.6,132.53,0.17]
[1720423523251,100.0,132.6,132.53,0.17]
[1720423523450,11.17639244,132.61,132.53,0.17]
[1720423524348,100.0,132.58,132.53,0.17]
[1720423524542,100.0,132.58,132.52,20.0]
[1720423525542,15.0399,132.64,132.51,22.0361]
[1720423525543,100.0,132.56,132.51,22.0361]
[1720423527075,100.0,132.58,132.51,22.0361]
[1720423527291,111.17639244,132.6,132.51,22.0361]
[1720423527640,111.17639244,132.6,132.52,20.0]
[1720423527943,100.0,132.62,132.53,0.17]
[1720423528146,111.16011798,132.62,132.53,0.17]
[1720423528339,100.0,132.62,132.53,0.17]
[1720423528561,111.16191862,132.62,132.53,0.17]
[1720423529056,100.0,132.62,132.53,0.17]
[1720423529470,11.16191862,132.63,132.54,21.7036]
[1720423529641,111.16191862,132.64,132.55,20.17]
[1720423530149,100.0,132.61,132.55,20.17]
[1720423530353,15.5719,132.67,132.55,20.0]
[1720423530354,100.0,132.59,132.55,20.0]
[1720423530555,100.0,132.59,132.54,21.7036]
[1720423530860,100.0,132.57,132.52,390.2]
[1720423531672,100.0,132.57,132.5,21.7245]
[1720423531961,100.0,132.59,132.5,21.7245]
[1720423532552,6.2957,132.63,132.52,21.1411]
[1720423532553,100.0,132.62,132.52,21.1411]
[1720423532751,100.0,132.62,132.53,20.0]
[1720423532970,11.16019176,132.64,132.53,20.0]
[1720423533449,100.0,132.65,132.53,20.0]